[Event "Titled Tuesday Blitz June 28 Late 2022"]
[White "Berant"]
[Black "Korchmar, Vasiliy"]
[BlackFideId "24131750"]
[WhiteElo "2498"]
[BlackElo "2695"]
[Result "1/2-1/2"]
[Round "06"]
[TimeControl "180+1"]
[Date "2022.06.29"]
[WhiteClock "0:00:08"]
[BlackClock "0:00:02"]

1. e4 {[%clk 0:02:59]}  c5 {[%clk 0:02:59]} 2. Nf3 {[%clk 0:02:58]}  d6 {[%clk 0:03:00]} 3. d4 {[%clk 0:02:58]}  cxd4 {[%clk 0:03:01]} 4. Nxd4 {[%clk 0:02:58]}  Nf6 {[%clk 0:03:02]} 5. Nc3 {[%clk 0:02:58]}  Nc6 {[%clk 0:03:02]} 6. Bc4 {[%clk 0:02:58]}  Qb6 {[%clk 0:03:01]} 7. Nb3 {[%clk 0:02:56]}  e6 {[%clk 0:03:01]} 8. Be3 {[%clk 0:02:55]}  Qc7 {[%clk 0:03:01]} 9. O-O {[%clk 0:02:53]}  a6 {[%clk 0:03:00]} 10. a4 {[%clk 0:02:49]}  Be7 {[%clk 0:02:57]} 11. Kh1 {[%clk 0:02:49]}  Ne5 {[%clk 0:02:55]} 12. Be2 {[%clk 0:02:48]}  Nc4 {[%clk 0:02:54]} 13. Bxc4 {[%clk 0:02:47]}  Qxc4 {[%clk 0:02:55]} 14. a5 {[%clk 0:02:43]}  Bd7 {[%clk 0:02:53]} 15. Nd4 {[%clk 0:02:32]}  O-O {[%clk 0:02:51]} 16. f4 {[%clk 0:02:28]}  Qc7 {[%clk 0:02:33]} 17. Rf3 {[%clk 0:02:25]}  Rfe8 {[%clk 0:02:19]} 18. Rg3 {[%clk 0:02:22]}  Bf8 {[%clk 0:02:16]} 19. Qf3 {[%clk 0:02:14]}  Kh8 {[%clk 0:02:09]} 20. Re1 {[%clk 0:02:01]}  Qxa5 {[%clk 0:02:09]} 21. Bd2 {[%clk 0:01:57]}  Qh5 {[%clk 0:01:59]} 22. Qf2 {[%clk 0:01:51]}  Ng4 {[%clk 0:01:33]} 23. Qg1 {[%clk 0:01:51]}  e5 {[%clk 0:01:33]} 24. fxe5 {[%clk 0:01:20]}  dxe5 {[%clk 0:01:34]} 25. Nf3 {[%clk 0:01:09]}  Rac8 {[%clk 0:01:26]} 26. h3 {[%clk 0:00:53]}  Bc5 {[%clk 0:01:25]} 27. Qf1 {[%clk 0:00:41]}  Nf2+ {[%clk 0:01:14]} 28. Kh2 {[%clk 0:00:40]}  Ng4+ {[%clk 0:01:15]} 29. Kh1 {[%clk 0:00:40]}  Bf2 {[%clk 0:01:15]} 30. Rxg4 {[%clk 0:00:39]}  Bxe1 {[%clk 0:01:15]} 31. Rg5 {[%clk 0:00:38]}  Qh6 {[%clk 0:00:43]} 32. Qxe1 {[%clk 0:00:36]}  Qb6 {[%clk 0:00:40]} 33. Rh5 {[%clk 0:00:29]}  f6 {[%clk 0:00:35]} 34. Qh4 {[%clk 0:00:27]}  Kg8 {[%clk 0:00:28]} 35. Rxh7 {[%clk 0:00:26]}  Be6 {[%clk 0:00:18]} 36. Qh5 {[%clk 0:00:25]}  Kf8 {[%clk 0:00:13]} 37. Qg6 {[%clk 0:00:18]}  Qc7 {[%clk 0:00:10]} 38. Ng5 {[%clk 0:00:15]}  fxg5 {[%clk 0:00:08]} 39. Bxg5 {[%clk 0:00:15]}  Bg8 {[%clk 0:00:04]} 40. Rxg7 {[%clk 0:00:14]}  Qxg7 {[%clk 0:00:02]} 41. Bh6 {[%clk 0:00:14]}  Rc7 {[%clk 0:00:01]} 42. Nd5 {[%clk 0:00:13]}  Bxd5 {[%clk 0:00:01]} 43. Bxg7+ {[%clk 0:00:13]}  Rxg7 {[%clk 0:00:01]} 44. Qf6+ {[%clk 0:00:13]}  Bf7 {[%clk 0:00:01]} 45. Qd6+ {[%clk 0:00:13]}  Kg8 {[%clk 0:00:02]} 46. g4 {[%clk 0:00:13]}  Bg6 {[%clk 0:00:02]} 47. h4 {[%clk 0:00:12]}  Bxe4+ {[%clk 0:00:02]} 48. Kh2 {[%clk 0:00:11]}  Rxg4 {[%clk 0:00:03]} 49. Qd7 {[%clk 0:00:11]}  Rg2+ {[%clk 0:00:03]} 50. Kh3 {[%clk 0:00:12]}  Rf8 {[%clk 0:00:04]} 51. Qe6+ {[%clk 0:00:11]}  Rf7 {[%clk 0:00:03]} 52. Qe8+ {[%clk 0:00:10]}  Rf8 {[%clk 0:00:03]} 53. Qe6+ {[%clk 0:00:10]}  Kh7 {[%clk 0:00:03]} 54. Qe7+ {[%clk 0:00:09]}  Kg8 {[%clk 0:00:02]} 55. Qe6+ {[%clk 0:00:08]} 1/2-1/2


[Site "https://www.chess.com"]

[Event "Titled Tuesday Blitz June 28 Late 2022"]
[White "Bjelobrk, Igor"]
[Black "Lauridsen, Jesper Morch"]
[WhiteFideId "4300726"]
[BlackFideId "1401890"]
[WhiteElo "2617"]
[BlackElo "2242"]
[Result "1-0"]
[Round "06"]
[TimeControl "180+1"]
[Date "2022.06.29"]
[WhiteClock "0:01:33"]
[BlackClock "0:00:28"]

1. Nf3 {[%clk 0:03:00]}  d5 {[%clk 0:02:59]} 2. c4 {[%clk 0:03:00]}  e6 {[%clk 0:02:59]} 3. g3 {[%clk 0:03:00]}  Nf6 {[%clk 0:02:59]} 4. Bg2 {[%clk 0:02:59]}  Be7 {[%clk 0:03:00]} 5. d4 {[%clk 0:02:59]}  O-O {[%clk 0:02:59]} 6. O-O {[%clk 0:02:57]}  c5 {[%clk 0:02:59]} 7. cxd5 {[%clk 0:02:57]}  exd5 {[%clk 0:02:59]} 8. Nc3 {[%clk 0:02:51]}  Nc6 {[%clk 0:02:59]} 9. Bg5 {[%clk 0:02:51]}  cxd4 {[%clk 0:02:59]} 10. Nxd4 {[%clk 0:02:50]}  h6 {[%clk 0:02:59]} 11. Be3 {[%clk 0:02:50]}  Re8 {[%clk 0:02:59]} 12. Qa4 {[%clk 0:02:47]}  Ne5 {[%clk 0:02:55]} 13. Rad1 {[%clk 0:02:45]}  a6 {[%clk 0:02:53]} 14. Nxd5 {[%clk 0:02:33]}  Nxd5 {[%clk 0:02:48]} 15. Bxd5 {[%clk 0:02:32]}  Bh3 {[%clk 0:02:09]} 16. Bxb7 {[%clk 0:02:30]}  Bxf1 {[%clk 0:01:58]} 17. Kxf1 {[%clk 0:02:08]}  Ng4 {[%clk 0:01:21]} 18. Nf5 {[%clk 0:01:46]}  Nxe3+ {[%clk 0:01:01]} 19. Nxe3 {[%clk 0:01:46]}  Qc7 {[%clk 0:00:56]} 20. Bxa8 {[%clk 0:01:45]}  Rxa8 {[%clk 0:00:57]} 21. Nd5 {[%clk 0:01:43]}  Qb7 {[%clk 0:00:50]} 22. Qe4 {[%clk 0:01:38]}  Kf8 {[%clk 0:00:40]} 23. Qxe7+ {[%clk 0:01:34]}  Qxe7 {[%clk 0:00:39]} 24. Nxe7 {[%clk 0:01:35]}  Kxe7 {[%clk 0:00:39]} 25. e3 {[%clk 0:01:36]}  Rc8 {[%clk 0:00:39]} 26. Rd2 {[%clk 0:01:36]}  Rc1+ {[%clk 0:00:38]} 27. Ke2 {[%clk 0:01:36]}  Rh1 {[%clk 0:00:38]} 28. h4 {[%clk 0:01:36]}  g5 {[%clk 0:00:35]} 29. hxg5 {[%clk 0:01:36]}  hxg5 {[%clk 0:00:36]} 30. Kd3 {[%clk 0:01:37]}  Ke6 {[%clk 0:00:34]} 31. Kc4 {[%clk 0:01:36]}  Ke5 {[%clk 0:00:32]} 32. Kb4 {[%clk 0:01:33]}  Ke4 {[%clk 0:00:32]} 33. Ka5 {[%clk 0:01:33]}  Rh6 {[%clk 0:00:30]} 34. b4 {[%clk 0:01:33]}  f5 {[%clk 0:00:28]} 35. a4 {[%clk 0:01:32]}  f4 {[%clk 0:00:27]} 36. gxf4 {[%clk 0:01:32]}  gxf4 {[%clk 0:00:27]} 37. exf4 {[%clk 0:01:32]}  Kxf4 {[%clk 0:00:27]} 38. b5 {[%clk 0:01:33]}  axb5 {[%clk 0:00:28]} 39. axb5 {[%clk 0:01:33]} 1-0


[Site "https://www.chess.com"]

[Event "Titled Tuesday Blitz June 28 Late 2022"]
[White "Bolanos, Fernando"]
[Black "Mirzoev, Azer"]
[WhiteFideId "3304094"]
[BlackFideId "13400304"]
[WhiteElo "2048"]
[BlackElo "2525"]
[Result "0-1"]
[Round "06"]
[TimeControl "180+1"]
[Date "2022.06.29"]
[WhiteClock "0:00:09"]
[BlackClock "0:01:19"]

1. e4 {[%clk 0:02:30]}  c5 {[%clk 0:02:59]} 2. Nf3 {[%clk 0:02:29]}  e6 {[%clk 0:03:00]} 3. d4 {[%clk 0:02:29]}  cxd4 {[%clk 0:03:00]} 4. Nxd4 {[%clk 0:02:29]}  a6 {[%clk 0:03:01]} 5. c4 {[%clk 0:02:29]}  Qc7 {[%clk 0:02:51]} 6. Nc3 {[%clk 0:02:27]}  g6 {[%clk 0:02:47]} 7. Be3 {[%clk 0:02:24]}  Bg7 {[%clk 0:02:46]} 8. Be2 {[%clk 0:02:24]}  Ne7 {[%clk 0:02:46]} 9. O-O {[%clk 0:02:24]}  O-O {[%clk 0:02:46]} 10. Qd2 {[%clk 0:02:21]}  Nbc6 {[%clk 0:02:45]} 11. Nc2 {[%clk 0:01:54]}  f5 {[%clk 0:02:40]} 12. f3 {[%clk 0:01:50]}  Ne5 {[%clk 0:02:35]} 13. b3 {[%clk 0:01:43]}  b5 {[%clk 0:02:34]} 14. c5 {[%clk 0:01:36]}  Bb7 {[%clk 0:02:31]} 15. b4 {[%clk 0:01:03]}  fxe4 {[%clk 0:02:19]} 16. fxe4 {[%clk 0:01:00]}  N7c6 {[%clk 0:02:16]} 17. a3 {[%clk 0:00:55]}  Rae8 {[%clk 0:02:10]} 18. h3 {[%clk 0:00:21]}  Qb8 {[%clk 0:02:08]} 19. a4 {[%clk 0:00:20]}  Nc4 {[%clk 0:01:33]} 20. Bxc4 {[%clk 0:00:19]}  bxc4 {[%clk 0:01:31]} 21. b5 {[%clk 0:00:19]}  Na5 {[%clk 0:01:30]} 22. Rxf8+ {[%clk 0:00:09]}  Rxf8 {[%clk 0:01:30]} 23. Rf1 {[%clk 0:00:10]}  Nb3 {[%clk 0:01:27]} 24. Qe1 {[%clk 0:00:09]}  axb5 {[%clk 0:01:24]} 25. axb5 {[%clk 0:00:08]}  Rxf1+ {[%clk 0:01:21]} 26. Kxf1 {[%clk 0:00:09]}  Qe5 {[%clk 0:01:20]} 27. Ne2 {[%clk 0:00:09]}  Qxe4 {[%clk 0:01:19]} 0-1


[Site "https://www.chess.com"]

[Event "Titled Tuesday Blitz June 28 Late 2022"]
[White "Boruchovsky, Avital"]
[Black "Matlakov, Maxim"]
[WhiteFideId "2800055"]
[BlackFideId "4168003"]
[WhiteElo "2466"]
[BlackElo "2669"]
[Result "1-0"]
[Round "06"]
[TimeControl "180+1"]
[Date "2022.06.28"]
[WhiteClock "0:00:06"]
[BlackClock "0:00:05"]

1. e4 {[%clk 0:03:00]}  e5 {[%clk 0:02:59]} 2. Nf3 {[%clk 0:03:00]}  Nc6 {[%clk 0:02:59]} 3. Bb5 {[%clk 0:03:01]}  a6 {[%clk 0:03:00]} 4. Ba4 {[%clk 0:03:00]}  Nf6 {[%clk 0:03:00]} 5. d3 {[%clk 0:03:01]}  d6 {[%clk 0:03:00]} 6. c3 {[%clk 0:03:01]}  g6 {[%clk 0:03:00]} 7. O-O {[%clk 0:03:01]}  Bg7 {[%clk 0:03:00]} 8. Re1 {[%clk 0:03:00]}  O-O {[%clk 0:02:59]} 9. Nbd2 {[%clk 0:03:01]}  h6 {[%clk 0:02:58]} 10. Nf1 {[%clk 0:02:59]}  Re8 {[%clk 0:02:53]} 11. Ng3 {[%clk 0:02:58]}  b5 {[%clk 0:02:53]} 12. Bc2 {[%clk 0:02:54]}  d5 {[%clk 0:02:53]} 13. exd5 {[%clk 0:02:54]}  Nxd5 {[%clk 0:02:48]} 14. a4 {[%clk 0:02:32]}  Rb8 {[%clk 0:02:45]} 15. axb5 {[%clk 0:02:31]}  axb5 {[%clk 0:02:46]} 16. Bb3 {[%clk 0:02:17]}  b4 {[%clk 0:02:33]} 17. Ne4 {[%clk 0:02:15]}  bxc3 {[%clk 0:02:32]} 18. bxc3 {[%clk 0:02:13]}  Be6 {[%clk 0:02:31]} 19. Ba4 {[%clk 0:02:05]}  Bd7 {[%clk 0:02:30]} 20. Qc2 {[%clk 0:02:00]}  Nce7 {[%clk 0:02:19]} 21. Nc5 {[%clk 0:01:41]}  Bxa4 {[%clk 0:02:16]} 22. Rxa4 {[%clk 0:01:42]}  Nxc3 {[%clk 0:01:36]} 23. Qxc3 {[%clk 0:01:32]}  e4 {[%clk 0:01:36]} 24. Nd4 {[%clk 0:01:23]}  Nf5 {[%clk 0:01:34]} 25. Be3 {[%clk 0:01:15]}  exd3 {[%clk 0:01:27]} 26. Nxd3 {[%clk 0:01:11]}  Qd7 {[%clk 0:00:43]} 27. Qc6 {[%clk 0:00:58]}  Qxc6 {[%clk 0:00:29]} 28. Nxc6 {[%clk 0:00:59]}  Rb3 {[%clk 0:00:30]} 29. Bd2 {[%clk 0:00:20]}  Rxe1+ {[%clk 0:00:13]} 30. Nxe1 {[%clk 0:00:20]}  Rb2 {[%clk 0:00:11]} 31. Ra8+ {[%clk 0:00:18]}  Kh7 {[%clk 0:00:11]} 32. Ba5 {[%clk 0:00:18]}  Ra2 {[%clk 0:00:09]} 33. Kf1 {[%clk 0:00:16]}  Ra1 {[%clk 0:00:08]} 34. Ra7 {[%clk 0:00:16]}  Nd4 {[%clk 0:00:07]} 35. Bxc7 {[%clk 0:00:06]}  Rxe1+ {[%clk 0:00:03]} 36. Kxe1 {[%clk 0:00:07]}  Nxc6 {[%clk 0:00:04]} 37. Rb7 {[%clk 0:00:08]}  g5 {[%clk 0:00:03]} 38. Bb6 {[%clk 0:00:07]}  Kg6 {[%clk 0:00:03]} 39. Be3 {[%clk 0:00:08]}  Ne5 {[%clk 0:00:03]} 40. Ke2 {[%clk 0:00:07]}  Ng4 {[%clk 0:00:02]} 41. h3 {[%clk 0:00:08]}  Ne5 {[%clk 0:00:02]} 42. g4 {[%clk 0:00:07]}  Nc4 {[%clk 0:00:02]} 43. Rc7 {[%clk 0:00:07]}  Nxe3 {[%clk 0:00:02]} 44. Kxe3 {[%clk 0:00:06]}  Be5 {[%clk 0:00:03]} 45. Rc6+ {[%clk 0:00:07]}  f6 {[%clk 0:00:04]} 46. Ke4 {[%clk 0:00:07]}  Bf4 {[%clk 0:00:04]} 47. f3 {[%clk 0:00:07]}  Kf7 {[%clk 0:00:04]} 48. Kf5 {[%clk 0:00:07]}  Be5 {[%clk 0:00:04]} 49. Re6 {[%clk 0:00:07]}  Bd4 {[%clk 0:00:04]} 50. Rd6 {[%clk 0:00:07]}  Be5 {[%clk 0:00:05]} 51. Rd7+ {[%clk 0:00:08]}  Ke8 {[%clk 0:00:05]} 52. Rh7 {[%clk 0:00:07]}  Kf8 {[%clk 0:00:05]} 53. Rxh6 {[%clk 0:00:06]} 1-0


[Site "https://www.chess.com"]

[Event "Titled Tuesday Blitz June 28 Late 2022"]
[White "Chernomordik, Pavel"]
[Black "Toncheva, Nadya"]
[WhiteFideId "2804530"]
[BlackFideId "2924056"]
[WhiteElo "2220"]
[BlackElo "1888"]
[Result "0-1"]
[Round "06"]
[TimeControl "180+1"]
[Date "2022.06.29"]
[WhiteClock "0:00:01"]
[BlackClock "0:00:05"]

1. e4 {[%clk 0:03:00]}  c5 {[%clk 0:02:59]} 2. Nc3 {[%clk 0:03:00]}  Nc6 {[%clk 0:02:59]} 3. Bb5 {[%clk 0:02:59]}  Nd4 {[%clk 0:02:59]} 4. Bc4 {[%clk 0:02:58]}  g6 {[%clk 0:02:55]} 5. Nge2 {[%clk 0:02:58]}  Nxe2 {[%clk 0:02:44]} 6. Qxe2 {[%clk 0:02:57]}  Bg7 {[%clk 0:02:42]} 7. O-O {[%clk 0:02:57]}  e6 {[%clk 0:02:40]} 8. f4 {[%clk 0:02:54]}  Ne7 {[%clk 0:02:36]} 9. f5 {[%clk 0:02:52]}  exf5 {[%clk 0:02:22]} 10. exf5 {[%clk 0:02:51]}  Bd4+ {[%clk 0:02:22]} 11. Kh1 {[%clk 0:02:51]}  O-O {[%clk 0:02:22]} 12. fxg6 {[%clk 0:02:26]}  hxg6 {[%clk 0:02:20]} 13. Nd5 {[%clk 0:02:21]}  Nf5 {[%clk 0:01:41]} 14. c3 {[%clk 0:02:08]}  Bg7 {[%clk 0:01:18]} 15. Rxf5 {[%clk 0:01:57]}  gxf5 {[%clk 0:01:04]} 16. Ne7+ {[%clk 0:01:56]}  Kh7 {[%clk 0:01:04]} 17. Qh5+ {[%clk 0:01:52]}  Bh6 {[%clk 0:01:05]} 18. Nxf5 {[%clk 0:01:43]}  Qg5 {[%clk 0:01:00]} 19. Qf3 {[%clk 0:01:42]}  d5 {[%clk 0:00:56]} 20. Bd3 {[%clk 0:01:40]}  Re8 {[%clk 0:00:44]} 21. Ne3+ {[%clk 0:01:24]}  Kg7 {[%clk 0:00:42]} 22. Bb5 {[%clk 0:01:17]}  Re4 {[%clk 0:00:30]} 23. Bd3 {[%clk 0:01:09]}  Rf4 {[%clk 0:00:27]} 24. Qxd5 {[%clk 0:00:59]}  Be6 {[%clk 0:00:14]} 25. Qxg5+ {[%clk 0:00:51]}  Bxg5 {[%clk 0:00:15]} 26. Be2 {[%clk 0:00:46]}  Rf2 {[%clk 0:00:12]} 27. Bb5 {[%clk 0:00:21]}  a6 {[%clk 0:00:10]} 28. Kg1 {[%clk 0:00:20]}  Bxe3 {[%clk 0:00:05]} 29. dxe3 {[%clk 0:00:20]}  Rf5 {[%clk 0:00:05]} 30. Bd3 {[%clk 0:00:18]}  Re5 {[%clk 0:00:05]} 31. e4 {[%clk 0:00:15]}  Rd8 {[%clk 0:00:05]} 32. Bc2 {[%clk 0:00:15]}  f5 {[%clk 0:00:04]} 33. Bf4 {[%clk 0:00:14]}  Rxe4 {[%clk 0:00:05]} 34. Bxe4 {[%clk 0:00:13]}  fxe4 {[%clk 0:00:06]} 35. Re1 {[%clk 0:00:13]}  Bf5 {[%clk 0:00:05]} 36. Be3 {[%clk 0:00:12]}  b6 {[%clk 0:00:04]} 37. h3 {[%clk 0:00:12]}  Rd3 {[%clk 0:00:04]} 38. g4 {[%clk 0:00:11]}  Bg6 {[%clk 0:00:04]} 39. Kg2 {[%clk 0:00:11]}  Kf6 {[%clk 0:00:05]} 40. Kg3 {[%clk 0:00:11]}  Ke5 {[%clk 0:00:05]} 41. Kf2 {[%clk 0:00:11]}  Rd6 {[%clk 0:00:04]} 42. h4 {[%clk 0:00:10]}  Rd5 {[%clk 0:00:04]} 43. h5 {[%clk 0:00:10]}  Bf7 {[%clk 0:00:04]} 44. Kg3 {[%clk 0:00:09]}  Kf6 {[%clk 0:00:04]} 45. Kf4 {[%clk 0:00:08]}  Re5 {[%clk 0:00:03]} 46. g5+ {[%clk 0:00:08]}  Rxg5 {[%clk 0:00:03]} 47. h6 {[%clk 0:00:07]}  Rf5+ {[%clk 0:00:03]} 48. Kg4 {[%clk 0:00:06]}  Bg6 {[%clk 0:00:03]} 49. Rh1 {[%clk 0:00:04]}  Bh7 {[%clk 0:00:04]} 50. Rd1 {[%clk 0:00:02]}  Rf3 {[%clk 0:00:04]} 51. Bg5+ {[%clk 0:00:01]}  Kg6 {[%clk 0:00:04]} 52. Rd6+ {[%clk 0:00:01]}  Kf7 {[%clk 0:00:04]} 53. Rd7+ {[%clk 0:00:01]}  Kg8 {[%clk 0:00:05]} 0-1


[Site "https://www.chess.com"]

[Event "Titled Tuesday Blitz June 28 Late 2022"]
[White "Clarke, Brandon G I"]
[Black "Barria Zuniga, Daniel"]
[WhiteFideId "400319"]
[BlackFideId "3400816"]
[WhiteElo "2414"]
[BlackElo "2414"]
[Result "1/2-1/2"]
[Round "06"]
[TimeControl "180+1"]
[Date "2022.06.28"]
[WhiteClock "0:00:05"]
[BlackClock "0:00:04"]

1. e4 {[%clk 0:03:00]}  c5 {[%clk 0:02:59]} 2. Nf3 {[%clk 0:02:59]}  e6 {[%clk 0:02:59]} 3. d3 {[%clk 0:02:57]}  b6 {[%clk 0:02:59]} 4. Nbd2 {[%clk 0:02:58]}  Bb7 {[%clk 0:03:00]} 5. Be2 {[%clk 0:02:58]}  d6 {[%clk 0:03:00]} 6. c3 {[%clk 0:02:59]}  Nd7 {[%clk 0:03:01]} 7. Qc2 {[%clk 0:03:00]}  Ngf6 {[%clk 0:03:01]} 8. Nf1 {[%clk 0:03:00]}  Be7 {[%clk 0:03:02]} 9. h3 {[%clk 0:03:01]}  O-O {[%clk 0:03:02]} 10. g4 {[%clk 0:03:01]}  c4 {[%clk 0:02:54]} 11. Ng3 {[%clk 0:03:00]}  cxd3 {[%clk 0:02:54]} 12. Bxd3 {[%clk 0:03:01]}  Nc5 {[%clk 0:02:54]} 13. Nd2 {[%clk 0:02:56]}  Nxd3+ {[%clk 0:02:50]} 14. Qxd3 {[%clk 0:02:56]}  Nd7 {[%clk 0:02:51]} 15. Qc2 {[%clk 0:02:53]}  Nc5 {[%clk 0:02:50]} 16. Nb3 {[%clk 0:02:48]}  Bh4 {[%clk 0:02:40]} 17. Nxc5 {[%clk 0:02:48]}  bxc5 {[%clk 0:02:41]} 18. Rg1 {[%clk 0:02:39]}  Qf6 {[%clk 0:02:24]} 19. Qe2 {[%clk 0:02:22]}  a5 {[%clk 0:01:57]} 20. Nh5 {[%clk 0:02:21]}  Qe5 {[%clk 0:01:55]} 21. Bf4 {[%clk 0:02:21]}  Qxe4 {[%clk 0:01:53]} 22. Qxe4 {[%clk 0:02:20]}  Bxe4 {[%clk 0:01:54]} 23. Bxd6 {[%clk 0:02:21]}  Rfc8 {[%clk 0:01:43]} 24. Ke2 {[%clk 0:02:20]}  a4 {[%clk 0:01:32]} 25. f3 {[%clk 0:02:19]}  Bd5 {[%clk 0:01:31]} 26. Nf4 {[%clk 0:02:15]}  Ra6 {[%clk 0:01:18]} 27. Nxd5 {[%clk 0:02:09]}  exd5 {[%clk 0:01:12]} 28. Bf4 {[%clk 0:02:09]}  Re8+ {[%clk 0:01:08]} 29. Kd3 {[%clk 0:02:05]}  c4+ {[%clk 0:00:57]} 30. Kd2 {[%clk 0:02:00]}  Rae6 {[%clk 0:00:54]} 31. Rg2 {[%clk 0:01:58]}  Be1+ {[%clk 0:00:50]} 32. Kc2 {[%clk 0:01:53]}  Bh4 {[%clk 0:00:44]} 33. Rd1 {[%clk 0:01:51]}  Re2+ {[%clk 0:00:40]} 34. Rxe2 {[%clk 0:01:50]}  Rxe2+ {[%clk 0:00:40]} 35. Rd2 {[%clk 0:01:50]}  Rxd2+ {[%clk 0:00:37]} 36. Kxd2 {[%clk 0:01:51]}  f6 {[%clk 0:00:35]} 37. Ke3 {[%clk 0:01:43]}  Kf7 {[%clk 0:00:34]} 38. Kd4 {[%clk 0:01:44]}  Ke6 {[%clk 0:00:31]} 39. Kc5 {[%clk 0:01:44]}  Bf2+ {[%clk 0:00:29]} 40. Kb4 {[%clk 0:01:43]}  a3 {[%clk 0:00:18]} 41. Kxa3 {[%clk 0:01:42]}  d4 {[%clk 0:00:18]} 42. cxd4 {[%clk 0:01:25]}  Bxd4 {[%clk 0:00:19]} 43. Kb4 {[%clk 0:01:05]}  Kd5 {[%clk 0:00:20]} 44. Bc1 {[%clk 0:01:05]}  Bc5+ {[%clk 0:00:19]} 45. Kb5 {[%clk 0:01:04]}  Bd4 {[%clk 0:00:11]} 46. a4 {[%clk 0:01:04]}  c3 {[%clk 0:00:11]} 47. bxc3 {[%clk 0:01:03]}  Bxc3 {[%clk 0:00:11]} 48. a5 {[%clk 0:01:01]}  Bxa5 {[%clk 0:00:10]} 49. Kxa5 {[%clk 0:01:01]}  Kd4 {[%clk 0:00:11]} 50. Kb5 {[%clk 0:00:57]}  Kd3 {[%clk 0:00:12]} 51. Kc5 {[%clk 0:00:56]}  Ke2 {[%clk 0:00:12]} 52. f4 {[%clk 0:00:57]}  Kf3 {[%clk 0:00:12]} 53. Kd5 {[%clk 0:00:24]}  Kg3 {[%clk 0:00:12]} 54. Ke6 {[%clk 0:00:11]}  Kxh3 {[%clk 0:00:12]} 55. Kf7 {[%clk 0:00:12]}  Kxg4 {[%clk 0:00:10]} 56. Kxg7 {[%clk 0:00:12]}  h5 {[%clk 0:00:10]} 57. Kxf6 {[%clk 0:00:12]}  h4 {[%clk 0:00:10]} 58. f5 {[%clk 0:00:05]}  h3 {[%clk 0:00:10]} 59. Bf4 {[%clk 0:00:02]}  Kxf4 {[%clk 0:00:10]} 60. Kg6 {[%clk 0:00:02]}  h2 {[%clk 0:00:10]} 61. f6 {[%clk 0:00:03]}  h1=Q {[%clk 0:00:10]} 62. f7 {[%clk 0:00:04]}  Qe4+ {[%clk 0:00:06]} 63. Kg7 {[%clk 0:00:04]}  Qe5+ {[%clk 0:00:06]} 64. Kg8 {[%clk 0:00:04]}  Qg5+ {[%clk 0:00:06]} 65. Kh7 {[%clk 0:00:04]}  Qh5+ {[%clk 0:00:05]} 66. Kg7 {[%clk 0:00:04]}  Qg5+ {[%clk 0:00:05]} 67. Kh8 {[%clk 0:00:05]}  Qh6+ {[%clk 0:00:04]} 68. Kg8 {[%clk 0:00:05]}  Qg6+ {[%clk 0:00:04]} 69. Kh8 {[%clk 0:00:06]}  Qf6+ {[%clk 0:00:04]} 70. Kg8 {[%clk 0:00:06]}  Kg5 {[%clk 0:00:04]} 71. f8=Q {[%clk 0:00:06]}  Qxf8+ {[%clk 0:00:04]} 72. Kxf8 {[%clk 0:00:05]} 1/2-1/2


[Site "https://www.chess.com"]

[Event "Titled Tuesday Blitz June 28 Late 2022"]
[White "Clawitter, Craig"]
[Black "Estrada Nieto, Julian"]
[WhiteFideId "2023105"]
[BlackFideId "5101018"]
[WhiteElo "2244"]
[BlackElo "2252"]
[Result "0-1"]
[Round "06"]
[TimeControl "180+1"]
[Date "2022.06.29"]
[WhiteClock "0:00:01"]
[BlackClock "0:00:27"]

1. e4 {[%clk 0:03:00]}  e5 {[%clk 0:03:00]} 2. Nf3 {[%clk 0:03:00]}  Nc6 {[%clk 0:03:00]} 3. Bb5 {[%clk 0:03:00]}  a6 {[%clk 0:03:00]} 4. Ba4 {[%clk 0:03:00]}  Nf6 {[%clk 0:03:01]} 5. O-O {[%clk 0:02:59]}  Be7 {[%clk 0:03:01]} 6. d3 {[%clk 0:03:00]}  b5 {[%clk 0:03:01]} 7. Bb3 {[%clk 0:03:00]}  d6 {[%clk 0:03:02]} 8. a4 {[%clk 0:02:58]}  b4 {[%clk 0:03:01]} 9. a5 {[%clk 0:02:53]}  O-O {[%clk 0:03:00]} 10. Nbd2 {[%clk 0:02:53]}  Be6 {[%clk 0:02:59]} 11. Nc4 {[%clk 0:02:49]}  Qc8 {[%clk 0:02:57]} 12. Ba4 {[%clk 0:02:44]}  Qb7 {[%clk 0:02:56]} 13. Nfd2 {[%clk 0:02:35]}  Rad8 {[%clk 0:02:40]} 14. Kh1 {[%clk 0:02:13]}  d5 {[%clk 0:02:38]} 15. exd5 {[%clk 0:02:11]}  Bxd5 {[%clk 0:02:35]} 16. Ne3 {[%clk 0:02:10]}  Be6 {[%clk 0:02:25]} 17. Ndc4 {[%clk 0:02:05]}  e4 {[%clk 0:02:19]} 18. b3 {[%clk 0:01:40]}  exd3 {[%clk 0:02:14]} 19. cxd3 {[%clk 0:01:41]}  Bc5 {[%clk 0:01:59]} 20. Qf3 {[%clk 0:01:31]}  Nd5 {[%clk 0:01:53]} 21. Bb2 {[%clk 0:01:25]}  Nd4 {[%clk 0:01:49]} 22. Qh5 {[%clk 0:00:59]}  Qa7 {[%clk 0:01:01]} 23. Rae1 {[%clk 0:00:36]}  Nf6 {[%clk 0:00:54]} 24. Qh4 {[%clk 0:00:32]}  Be7 {[%clk 0:00:50]} 25. f4 {[%clk 0:00:16]}  Qc5 {[%clk 0:00:42]} 26. f5 {[%clk 0:00:16]}  Nd5 {[%clk 0:00:39]} 27. fxe6 {[%clk 0:00:12]}  Bxh4 {[%clk 0:00:38]} 28. exf7+ {[%clk 0:00:10]}  Rxf7 {[%clk 0:00:36]} 29. Nxd5 {[%clk 0:00:06]}  Rxf1+ {[%clk 0:00:34]} 30. Rxf1 {[%clk 0:00:05]}  Qxd5 {[%clk 0:00:34]} 31. Ne3 {[%clk 0:00:01]}  Qe6 {[%clk 0:00:27]} 0-1


[Site "https://www.chess.com"]